bitfinex/quotes_SOLUSD_20240816
["timestamp","ask_amount","ask_price","bid_price","bid_amount"]
[1723795072630,0.12549,144.78,144.72,20.0]
[1723795072829,10.28,144.78,144.73,2.07501028]
[1723795073019,10.28,144.78,144.72,20.0]
[1723795073206,10.28,144.78,144.73,2.07502448]
[1723795073411,10.28,144.78,144.72,20.0]
[1723795073609,10.28,144.78,144.73,2.07502448]
[1723795073821,10.28,144.78,144.72,20.0]
[1723795074119,10.28,144.78,144.73,2.07502398]
[1723795074321,1.72712862,144.77,144.72,20.0]
[1723795074496,1.72712862,144.77,144.73,2.0750127]
[1723795074699,1.72712862,144.77,144.72,20.0]
[1723795074921,6.9075,144.77,144.73,2.07502815]
[1723795075126,10.28,144.76,144.72,20.0]
[1723795075295,10.28,144.76,144.73,2.07504592]
[1723795075597,10.28,144.76,144.72,20.0]
[1723795077499,17.187,144.78,144.73,2.0751303]
[1723795077695,17.187,144.78,144.72,20.0]
[1723795077928,17.187,144.78,144.73,2.07502015]
[1723795078113,17.187,144.78,144.72,20.0]
[1723795078315,17.187,144.78,144.73,2.07501953]
[1723795078518,17.187,144.78,144.74,2.07501953]
[1723795078725,17.187,144.78,144.72,20.0]
[1723795079033,17.187,144.78,144.73,2.0750246]
[1723795079237,17.187,144.78,144.72,20.0]
[1723795079546,17.187,144.78,144.73,2.07502398]
[1723795079705,1.7271438,144.77,144.74,2.07502398]
[1723795079907,1.7271438,144.77,144.72,20.0]
[1723795080105,17.187,144.78,144.73,2.07502523]
[1723795080307,17.187,144.78,144.74,2.07502523]
[1723795080501,17.187,144.78,144.72,20.0]
[1723795080725,17.187,144.78,144.73,2.07503576]
[1723795080931,10.28,144.76,144.74,2.07503576]
[1723795081127,10.28,144.76,144.72,6.30814603]
[1723795081439,10.28,144.76,144.73,2.07512662]
[1723795081640,10.28,144.76,144.71,20.0]
[1723795081940,10.28,144.76,144.72,8.38339276]
[1723795082145,10.28,144.76,144.71,40.0]
[1723795082146,10.28,144.76,144.73,2.07513381]
[1723795082323,10.28,144.76,144.71,40.0]
[1723795082521,10.28,144.76,144.72,8.38339239]
[1723795082711,10.28,144.76,144.73,2.07513675]
[1723795083025,10.28,144.76,144.71,40.0]
[1723795083414,10.28,144.76,144.72,8.38338225]
[1723795083611,10.28,144.76,144.73,2.07514687]
[1723795083856,10.28,144.76,144.71,20.0]
[1723795084025,10.28,144.76,144.72,8.3811686]
[1723795084223,10.28,144.76,144.73,2.07514509]
[1723795084417,10.28,144.76,144.71,20.0]
[1723795084740,10.28,144.76,144.72,8.38032203]
[1723795084936,10.28,144.76,144.73,2.07514385]
[1723795085141,10.28,144.76,144.71,20.0]
[1723795085349,10.28,144.76,144.72,8.38006097]
[1723795085639,10.28,144.76,144.73,2.07514385]
[1723795085825,10.28,144.76,144.71,20.0]
[1723795086028,10.28,144.76,144.72,8.37964792]
[1723795086337,10.28,144.76,144.73,2.07514509]
[1723795086529,10.28,144.76,144.71,20.0]
[1723795086723,10.28,144.76,144.72,8.37961127]
[1723795086920,10.28,144.76,144.73,2.07514509]
[1723795087104,10.28,144.76,144.71,20.0]
[1723795087310,6.9076,144.77,144.72,8.37961536]
[1723795087527,10.28,144.76,144.73,2.07514385]
[1723795087727,10.28,144.76,144.71,40.0]
[1723795087944,10.28,144.76,144.72,8.3796286]
[1723795088258,10.28,144.76,144.73,2.07514509]
[1723795088425,6.907,144.78,144.71,40.0]
[1723795088626,17.187,144.78,144.73,20.0]
[1723795088836,17.187,144.78,144.74,2.07514385]
[1723795089029,17.187,144.78,144.73,20.0]
[1723795089327,17.187,144.78,144.74,2.07501204]
[1723795089533,17.187,144.78,144.73,20.0]
[1723795089736,17.187,144.78,144.74,2.07500494]
[1723795089920,17.187,144.78,144.73,20.0]
[1723795090256,17.187,144.78,144.74,2.07502394]
[1723795090423,17.187,144.78,144.73,20.0]
[1723795090761,17.187,144.78,144.74,2.07501622]
[1723795090962,17.187,144.78,144.73,20.0]
[1723795091128,17.187,144.78,144.74,2.07501684]
[1723795091329,17.187,144.78,144.73,20.0]
[1723795091835,17.187,144.78,144.74,2.07501764]
[1723795092050,17.187,144.78,144.72,45.0]
[1723795092243,22.1934,144.79,144.73,8.38049471]
[1723795092446,10.28,144.77,144.74,2.07502332]
[1723795092762,10.28,144.77,144.72,45.0]
[1723795092921,10.28,144.77,144.73,8.38025385]
[1723795093121,10.28,144.77,144.74,2.07502519]
[1723795093335,10.28,144.77,144.72,12.50457497]
[1723795093543,10.28,144.77,144.73,8.38067045]
[1723795093742,12.00713403,144.77,144.74,2.07503105]
[1723795094055,12.00713403,144.77,144.71,50.34655258]
[1723795094259,10.28,144.77,144.72,65.88523353]
[1723795094454,29.1,144.79,144.73,8.38072082]
[1723795094753,15.8724,144.79,144.74,65.88040858]
[1723795094956,15.8724,144.79,144.75,8.38036061]
[1723795095166,15.8724,144.79,144.74,45.0]
[1723795095378,15.8724,144.79,144.75,8.38052969]
[1723795095665,15.8724,144.79,144.76,2.07481675]
[1723795095830,15.8724,144.79,144.75,20.0]
[1723795097029,10.28,144.8,144.75,20.0]
[1723795097252,16.1025,144.82,144.76,2.07472414]
[1723795097434,10.28,144.81,144.77,2.07472414]
[1723795097635,16.1025,144.82,144.77,20.0]
[1723795098042,11.1340329,144.83,144.77,20.0]
[1723795099048,10.28,144.81,144.75,12.49657118]
[1723795099239,10.28,144.81,144.76,28.3766312]
[1723795099458,10.28,144.81,144.76,20.0]
[1723795099865,10.28,144.81,144.75,20.0]
[1723795100037,10.28,144.81,144.76,8.37631561]
[1723795100260,10.28,144.81,144.77,2.0745978]
[1723795100573,10.28,144.81,144.75,22.17603501]
[1723795100866,10.28,144.81,144.76,8.37572461]
[1723795101071,10.28,144.81,144.77,2.07451944]
[1723795101369,10.28,144.81,144.75,30.31897995]
[1723795101572,10.28,144.81,144.76,8.37414038]
[1723795101746,10.28,144.81,144.77,2.07451881]
[1723795102067,10.28,144.81,144.75,20.0]
[1723795102272,10.28,144.81,144.76,8.37329131]
[1723795102466,10.28,144.81,144.75,20.0]
[1723795102674,10.28,144.81,144.76,2.07453009]
[1723795102874,10.28,144.81,144.75,20.0]
[1723795103072,10.28,144.81,144.76,2.07453071]
[1723795103379,10.28,144.81,144.75,20.0]
[1723795103677,8.75751175,144.82,144.71,20.25535868]
[1723795103678,10.28,144.77,144.71,20.25535868]
[1723795103900,10.28,144.77,144.71,9.35319319]
[1723795104083,10.28,144.77,144.72,8.37500695]
[1723795104306,10.28,144.77,144.73,8.37500695]
[1723795104453,10.28,144.77,144.71,2.17619085]
[1723795104654,10.28,144.77,144.72,8.37607105]
[1723795104863,10.28,144.77,144.73,2.07503834]
[1723795105062,10.28,144.77,144.71,10.31893804]
[1723795105269,10.28,144.77,144.72,8.37613128]
[1723795105478,10.28,144.77,144.71,10.31897613]
[1723795105657,10.28,144.77,144.72,8.37611381]
[1723795105980,10.28,144.77,144.73,2.07502821]
[1723795106184,10.28,144.77,144.7,13.07464232]
[1723795106381,10.28,144.77,144.71,18.69719963]
[1723795106685,10.28,144.77,144.72,8.37689927]
[1723795106987,10.28,144.77,144.73,2.07502945]
[1723795107165,10.28,144.77,144.7,33.07464232]
[1723795107488,10.28,144.77,144.71,83.70035171]
[1723795107787,10.28,144.77,144.72,8.37810129]
[1723795108003,10.28,144.77,144.73,2.07504073]
[1723795108199,10.28,144.77,144.71,65.0]
[1723795108364,10.28,144.77,144.72,8.37761375]
[1723795108559,10.28,144.77,144.71,65.0]
[1723795108857,10.28,144.77,144.72,8.37340463]
[1723795109071,17.1875,144.77,144.71,65.0]
[1723795109275,17.1875,144.77,144.72,8.37434865]
[1723795109594,17.1875,144.77,144.71,65.0]
[1723795109768,17.1875,144.77,144.72,2.07517548]
[1723795109963,0.12549,144.76,144.71,20.0]
[1723795110555,0.12549,144.76,144.72,2.0751761]
[1723795110869,0.12549,144.76,144.71,20.0]
[1723795112597,17.1875,144.77,144.72,8.37524911]
[1723795112895,10.28,144.77,144.73,45.0]
[1723795113086,10.28,144.77,144.71,20.0]
[1723795113385,10.28,144.77,144.72,8.37566647]
[1723795113591,10.28,144.77,144.71,20.0]
[1723795113885,10.28,144.77,144.72,8.3755595]
[1723795114085,10.28,144.77,144.71,20.0]
[1723795114291,10.28,144.77,144.72,8.37543575]
[1723795114463,10.28,144.77,144.71,20.0]
[1723795114659,10.28,144.77,144.72,8.37554083]
[1723795114862,10.28,144.77,144.71,20.0]
[1723795115080,10.28,144.77,144.72,8.37475573]
[1723795115276,10.28,144.77,144.71,20.0]
[1723795115556,10.28,144.77,144.72,8.37263618]
[1723795115772,10.28,144.77,144.71,20.0]
[1723795115969,10.28,144.77,144.72,8.37258331]
[1723795116167,10.28,144.77,144.71,20.0]
[1723795116369,10.28,144.77,144.72,8.37250323]
[1723795116656,10.28,144.77,144.71,20.0]
[1723795116857,10.28,144.77,144.72,8.37250385]
[1723795117058,10.28,144.77,144.71,20.0]
[1723795117254,10.28,144.77,144.72,53.37119232]
[1723795117463,6.9085,144.75,144.71,20.0]
[1723795117673,10.28,144.74,144.7,20.0]
[1723795117896,10.28,144.74,144.71,2.07530605]
[1723795118070,10.28,144.74,144.7,20.0]
[1723795118263,10.28,144.74,144.71,2.07530729]
[1723795118465,10.28,144.74,144.7,20.0]
[1723795118666,10.28,144.74,144.69,10.3120736]
[1723795118973,10.28,144.74,144.7,28.37184851]
[1723795119183,10.28,144.74,144.71,20.0]
[1723795119879,10.28,144.74,144.7,20.0]
[1723795120183,10.28,144.74,144.69,30.31438507]
[1723795120495,10.28,144.74,144.7,8.37357386]
[1723795120718,10.28,144.74,144.71,20.0]
[1723795120868,10.28,144.74,144.69,30.31435893]
[1723795121193,10.28,144.74,144.7,8.37406787]
[1723795121366,10.28,144.74,144.71,20.0]
[1723795121564,10.28,144.74,144.69,30.31632871]
[1723795121774,10.28,144.74,144.7,8.37479416]
[1723795121975,10.28,144.74,144.71,20.0]
[1723795122313,10.28,144.74,144.69,20.0]
[1723795122598,10.28,144.74,144.7,53.37444445]
[1723795122771,10.28,144.74,144.71,20.0]
[1723795129114,10.28,144.72,144.67,9.35182689]
[1723795129408,10.28,144.72,144.68,8.37689819]
[1723795129730,10.28,144.72,144.66,6.1]
[1723795129890,10.28,144.72,144.67,8.37747429]
[1723795130089,10.28,144.72,144.68,2.07561239]
[1723795130273,10.28,144.72,144.66,16.42092375]
[1723795130476,10.28,144.72,144.67,53.37961511]
[1723795130684,10.28,144.72,144.67,45.0]
[1723795131486,10.28,144.72,144.66,45.0]
[1723795131681,10.28,144.72,144.67,8.3800226]
[1723795131897,10.28,144.72,144.66,45.0]
[1723795132204,10.28,144.72,144.67,28.37954268]
[1723795132380,10.28,144.72,144.67,20.0]
[1723795136219,10.28,144.72,144.67,22.07565996]
[1723795136611,16.0174,144.71,144.67,20.0]
[1723795139049,18.91870241,144.7,144.64,6.30251562]
[1723795139236,10.28,144.68,144.63,8.38056192]
[1723795139412,10.28,144.68,144.63,6.30450689]
[1723795139746,10.28,144.68,144.63,8.38058604]
[1723795140037,10.28,144.68,144.63,2.07607915]
[1723795140219,0.12549,144.7,144.63,2.07607915]
[1723795140405,16.0174,144.71,144.65,20.0]
[1723795140608,26.2974,144.71,144.65,20.0]
[1723795140936,33.2077,144.71,144.63,85.0]
[1723795141123,33.2077,144.71,144.65,20.0]
[1723795141324,26.2974,144.71,144.65,20.0]
[1723795143213,26.2974,144.71,144.63,87.07606119]
[1723795143416,33.2078,144.71,144.63,87.07606119]
[1723795143619,33.2078,144.71,144.63,85.0]
[1723795144028,33.2078,144.71,144.65,20.0]
[1723795144328,33.2078,144.71,144.63,87.07606119]
[1723795144920,10.28,144.69,144.63,87.07606119]
[1723795145959,10.28,144.69,144.63,67.07606119]
[1723795146330,10.28,144.69,144.63,65.0]
[1723795146919,10.28,144.67,144.63,65.0]
[1723795147752,10.28,144.67,144.63,20.0]
[1723795147959,26.3525,144.67,144.6,2.07606119]
[1723795148121,26.3525,144.67,144.61,2.07606119]
[1723795148318,26.3525,144.67,144.61,20.0]
[1723795148319,16.0725,144.67,144.61,20.0]
[1723795148633,16.5942,144.71,144.62,22.07606119]
[1723795148837,10.28,144.7,144.65,20.0]
[1723795150850,26.8742,144.71,144.67,20.0]
[1723795152022,26.8742,144.71,144.64,22.07587783]
[1723795152252,26.8742,144.71,144.65,65.0]
[1723795155159,16.5942,144.71,144.67,20.0]
[1723795158466,16.5942,144.71,144.65,67.07589724]
[1723795159168,10.28,144.7,144.65,65.0]
[1723795159336,10.28,144.7,144.65,85.0]
[1723795159659,10.28,144.7,144.65,87.07589994]
[1723795160045,16.5942,144.71,144.65,87.07589994]
[1723795160259,33.0121,144.74,144.68,20.0]
[1723795161439,33.0121,144.74,144.66,26.41028672]
[1723795161636,33.0121,144.74,144.67,65.0]
[1723795162567,26.1031,144.74,144.7,20.0]
[1723795162778,26.1031,144.74,144.71,45.0]
[1723795162779,15.8231,144.74,144.71,45.0]
[1723795163074,15.8231,144.74,144.7,20.0]
[1723795163243,26.1031,144.74,144.7,20.0]
[1723795165155,26.1031,144.74,144.68,22.07558111]
[1723795165368,26.1031,144.74,144.69,65.0]
[1723795169083,26.1031,144.74,144.69,20.0]
[1723795169250,26.1031,144.74,144.67,26.27992024]
[1723795169441,26.1031,144.74,144.68,2.07559774]
[1723795169644,26.1031,144.74,144.67,20.0]
[1723795169889,26.1031,144.74,144.68,2.07558844]
[1723795170047,26.1031,144.74,144.68,45.0]
[1723795170277,26.1031,144.74,144.69,20.0]
[1723795171491,27.83061579,144.74,144.69,20.0]
[1723795171978,1.72751574,144.73,144.69,20.0]
[1723795172178,10.28,144.72,144.66,10.28693887]
[1723795172382,10.28,144.72,144.67,73.35925019]
[1723795172565,10.28,144.72,144.68,2.07563143]
[1723795172873,10.28,144.72,144.67,65.0]
[1723795173073,10.28,144.72,144.68,2.07559762]
[1723795173268,10.28,144.72,144.67,65.0]
[1723795173502,10.28,144.72,144.68,2.07559534]
[1723795173704,10.28,144.72,144.67,85.0]
[1723795174206,26.1031,144.74,144.68,2.07559679]
[1723795174380,26.1031,144.74,144.69,22.07555774]
[1723795174584,26.1031,144.74,144.69,20.0]
[1723795181178,15.8231,144.74,144.7,47.07534529]
[1723795181479,15.8231,144.74,144.7,45.0]
[1723795185515,17.1881,144.76,144.7,45.0]
[1723795187814,1.72733353,144.75,144.7,45.0]
[1723795188618,17.1881,144.76,144.7,45.0]
[1723795190510,1.72732858,144.75,144.7,45.0]
[1723795191222,17.1881,144.76,144.7,45.0]
[1723795191728,10.28,144.74,144.7,45.0]
[1723795195118,6.908,144.76,144.7,45.0]
[1723795195441,10.28,144.75,144.7,45.0]
[1723795196951,17.1885,144.75,144.7,45.0]
[1723795197831,6.9082,144.76,144.7,45.0]
[1723795198056,17.1882,144.76,144.7,45.0]
[1723795200658,17.1882,144.76,144.71,2.07529755]
[1723795200955,17.1882,144.76,144.7,45.0]
[1723795201113,17.1882,144.76,144.71,2.07528544]
[1723795201314,17.1882,144.76,144.7,45.0]
[1723795201510,17.1882,144.76,144.71,2.07528828]
[1723795201739,17.1882,144.76,144.7,45.0]
[1723795201934,17.1882,144.76,144.71,2.07528786]
[1723795202140,17.1882,144.76,144.7,45.0]
[1723795202346,17.1882,144.76,144.71,2.07525648]
[1723795202522,17.1882,144.76,144.7,45.0]
[1723795202731,10.28,144.76,144.71,2.07525648]
[1723795202933,10.28,144.76,144.7,45.0]
[1723795203154,10.28,144.76,144.71,22.07525586]
[1723795203450,10.28,144.76,144.71,20.0]
[1723795203682,17.1882,144.76,144.71,20.0]
[1723795204228,17.1882,144.76,144.72,2.07524566]
[1723795204430,17.1882,144.76,144.71,20.0]
[1723795204667,17.1882,144.76,144.72,2.07525407]
[1723795204825,17.1882,144.76,144.71,20.0]
[1723795205022,17.1882,144.76,144.72,2.07525291]
[1723795205223,17.1882,144.76,144.71,20.0]
[1723795205429,17.1882,144.76,144.72,2.07524164]
[1723795205727,17.1882,144.76,144.71,20.0]
[1723795206039,17.1882,144.76,144.72,2.07525524]
[1723795206245,17.1882,144.76,144.71,20.0]
[1723795206429,17.1882,144.76,144.72,2.07525586]
[1723795206751,17.1882,144.76,144.71,20.0]
[1723795206955,17.1882,144.76,144.72,2.07525764]
[1723795207169,17.1882,144.76,144.71,20.0]
[1723795207355,17.1882,144.76,144.72,2.07525702]
[1723795207539,17.1882,144.76,144.71,20.0]
[1723795207749,6.9084,144.75,144.72,2.07525702]
[1723795207962,6.9084,144.75,144.71,20.0]
[1723795208252,6.9084,144.75,144.72,2.07525826]
[1723795208474,18.91532675,144.76,144.71,20.0]
[1723795208641,17.1881,144.76,144.72,2.07525586]
[1723795208844,17.1881,144.76,144.71,20.0]
[1723795209043,17.1881,144.76,144.72,2.07524519]
[1723795209242,17.1881,144.76,144.71,20.0]
[1723795209470,17.1881,144.76,144.72,2.07524442]
[1723795209771,17.1881,144.76,144.71,20.0]
[1723795209986,17.1881,144.76,144.72,2.07523228]
[1723795210273,17.1881,144.76,144.71,20.0]
[1723795210569,17.1881,144.76,144.72,47.0752319]
[1723795210780,17.1881,144.76,144.72,45.0]
[1723795212842,10.28,144.76,144.72,45.0]
[1723795214778,16.4886,144.82,144.75,20.0]
[1723795214982,10.28,144.8,144.73,2.16181725]
[1723795215276,8.63383126,144.79,144.73,20.0]
[1723795215457,6.9069,144.79,144.74,47.07501217]
[1723795215789,17.1863,144.8,144.75,20.0]
[1723795216865,26.78599,144.78,144.72,10.2375291]
[1723795217051,26.78599,144.78,144.69,22.69793511]
[1723795217052,10.28,144.76,144.69,22.69793511]
[1723795217248,10.28,144.76,144.71,20.0]
[1723795217463,17.1882,144.76,144.72,2.07516908]
[1723795217775,17.1882,144.76,144.71,20.0]
[1723795217980,17.1882,144.76,144.72,2.07516917]
[1723795218158,17.1882,144.76,144.71,20.0]
[1723795218358,17.1882,144.76,144.72,2.07527787]
[1723795218586,16.3805,144.78,144.73,22.07510992]
[1723795218889,16.3805,144.78,144.73,20.0]
[1723795219192,10.28,144.77,144.74,2.07497804]
[1723795219500,10.28,144.75,144.71,6.24850283]
[1723795219792,10.28,144.75,144.69,10.29305797]
[1723795219793,10.28,144.73,144.72,2.07519468]
[1723795220283,10.28,144.73,144.68,30.29305797]
[1723795220483,10.28,144.73,144.69,40.74029776]
[1723795220703,10.28,144.73,144.7,8.32649022]
[1723795220890,10.28,144.73,144.71,2.07535872]
[1723795221057,10.28,144.73,144.69,20.0]
[1723795221265,10.28,144.73,144.7,8.3266316]
[1723795221488,10.28,144.73,144.71,2.07535748]
[1723795221703,17.1886,144.75,144.7,20.0]
[1723795221862,17.1886,144.75,144.71,2.07533936]
[1723795222209,10.28,144.75,144.7,20.0]
[1723795222395,10.28,144.75,144.71,2.07533874]
[1723795222564,10.28,144.75,144.7,20.0]
[1723795222793,10.28,144.75,144.71,2.07532684]
[1723795222977,10.28,144.75,144.7,20.0]
[1723795223177,6.9075,144.77,144.71,2.07532746]
[1723795223410,10.28,144.76,144.72,2.07532746]
[1723795223709,10.28,144.76,144.71,45.0]
[1723795223910,10.28,144.76,144.72,2.0751686]
[1723795224214,17.1881,144.76,144.71,45.0]
[1723795224515,10.28,144.76,144.72,2.07529387]
[1723795224712,10.28,144.76,144.71,45.0]
[1723795225014,10.28,144.76,144.72,8.32525398]
[1723795225183,10.28,144.76,144.73,2.07529394]
[1723795225387,10.28,144.76,144.71,45.0]
[1723795225585,10.28,144.76,144.73,20.0]
[1723795225885,33.5676,144.78,144.73,20.0]
[1723795226887,6.9075,144.77,144.71,65.0]
[1723795227215,6.9075,144.77,144.72,8.327125]
[1723795227386,6.9075,144.77,144.73,2.07515089]
[1723795227590,6.9075,144.77,144.71,45.0]
[1723795227803,6.9075,144.77,144.72,8.32719116]
[1723795228005,6.9075,144.77,144.73,2.07514964]
[1723795228205,6.9075,144.77,144.71,45.0]
[1723795228378,6.9075,144.77,144.72,8.32719492]
[1723795228584,6.9075,144.77,144.73,2.07514964]
[1723795228788,6.9075,144.77,144.71,45.0]
[1723795228986,6.9075,144.77,144.72,8.32712971]
[1723795229207,6.9075,144.77,144.73,2.07514964]
[1723795229406,6.9075,144.77,144.71,45.0]
[1723795229618,10.28,144.76,144.72,8.32780093]
[1723795229909,10.28,144.76,144.71,45.0]
[1723795230188,10.28,144.76,144.72,2.07528942]
[1723795230400,10.28,144.76,144.7,45.0]
[1723795230607,10.28,144.76,144.71,8.32990032]
[1723795230797,10.28,144.76,144.72,2.07528355]
[1723795231013,10.28,144.76,144.7,45.0]
[1723795231212,10.28,144.76,144.71,8.32965517]
[1723795231415,10.28,144.76,144.72,2.07530043]
[1723795231589,10.28,144.76,144.7,45.0]
[1723795231590,10.28,144.76,144.7,65.0]
[1723795231923,10.28,144.76,144.71,8.32928458]
[1723795232086,10.28,144.76,144.72,8.32928458]
[1723795232290,10.28,144.76,144.73,2.07528231]
[1723795232483,10.28,144.76,144.7,65.0]
[1723795232709,10.28,144.76,144.71,8.32777139]
[1723795232937,10.28,144.76,144.7,65.0]
[1723795233113,10.28,144.76,144.71,8.32815974]
[1723795233421,10.28,144.76,144.72,2.0752221]
[1723795233595,10.28,144.76,144.7,65.0]
[1723795233792,10.28,144.76,144.71,8.32874868]
[1723795234026,10.28,144.76,144.72,2.07525833]
[1723795234209,10.28,144.76,144.7,65.0]
[1723795234420,10.28,144.76,144.71,8.32891872]
[1723795234621,10.28,144.76,144.7,65.0]
[1723795234622,10.28,144.76,144.72,2.0752752]
[1723795234928,23.2876,144.78,144.7,65.0]
[1723795235215,23.2876,144.78,144.72,20.0]
[1723795235216,10.40549,144.77,144.72,20.0]
[1723795235794,10.40549,144.77,144.73,2.07524224]
[1723795235993,10.40549,144.77,144.72,20.0]
[1723795236203,41.9740329,144.83,144.73,2.07520538]
[1723795236204,15.772,144.82,144.73,2.07520538]
[1723795236421,15.772,144.82,144.77,20.0]
[1723795236634,7.7587329,144.83,144.78,22.2833]
[1723795236802,0.8540329,144.83,144.8,20.0]
[1723795237000,0.8540329,144.83,144.81,48.31508507]
[1723795237305,0.8540329,144.83,144.81,85.0]
[1723795237628,0.8540329,144.83,144.81,20.0]
[1723795237830,0.8540329,144.83,144.78,62.2833]
[1723795237831,0.8540329,144.83,144.79,22.0739958]
[1723795238032,0.8540329,144.83,144.8,45.0]
[1723795238243,0.8540329,144.83,144.81,20.0]
[1723795238527,0.8540329,144.83,144.81,40.0]
[1723795239102,0.8540329,144.83,144.82,45.0]
[1723795239310,0.8540329,144.83,144.81,40.0]
[1723795240302,0.8540329,144.83,144.78,22.2833]
[1723795240669,0.8540329,144.83,144.79,65.0]
[1723795241152,0.8540329,144.83,144.79,85.0]
[1723795242004,0.8540329,144.83,144.81,20.0]
[1723795244107,0.8540329,144.83,144.79,65.0]
[1723795244727,0.8540329,144.83,144.8,20.0]
[1723795245317,0.8540329,144.83,144.82,20.12549]
[1723795245514,3.29e-05,144.83,144.82,85.50196]
[1723795245738,3.29e-05,144.83,144.82,65.25098]
[1723795245913,3.29e-05,144.83,144.82,85.12549]
[1723795246237,1.34810836,144.85,144.84,40.12549]
[1723795246435,1.34810836,144.85,144.84,115.78196]
[1723795246732,1.34810836,144.85,144.84,115.65647]
[1723795247316,1.34810836,144.85,144.84,115.78196]
[1723795254245,1.34810836,144.85,144.84,105.50196]
[1723795254450,1.34810836,144.85,144.84,115.78196]
[1723795255241,1.34810836,144.85,144.84,105.50196]
[1723795255644,1.34810836,144.85,144.84,105.37647]
[1723795260648,1.34810836,144.85,144.84,105.50196]
[1723795261469,1.34810836,144.85,144.84,115.78196]
[1723795268259,1.34810836,144.85,144.84,105.12549]
[1723795268463,1.34810836,144.85,144.84,20.0]
[1723795268712,1.34810836,144.85,144.83,20.0]
[1723795270287,1.34810836,144.85,144.84,20.0]
[1723795270580,1.34810836,144.85,144.84,65.0]
[1723795271784,1.34810836,144.85,144.84,20.0]
[1723795272196,1.34810836,144.85,144.82,20.0]
[1723795273075,1.34810836,144.85,144.83,45.0]
[1723795273269,1.34810836,144.85,144.84,20.0]
[1723795277395,1.34810836,144.85,144.79,27.20666254]
[1723795277578,36.38660749,144.95,144.94,20.0]
[1723795277579,1.89180749,144.95,144.94,20.0]
[1723795277797,1.89180749,144.95,144.92,20.0]
[1723795278376,4.60890373,144.95,144.92,20.0]
[1723795278580,4.60890373,144.95,144.93,45.0]
[1723795278766,4.60890373,144.95,144.94,30.0]
[1723795279396,4.60890373,144.95,144.94,50.0]
[1723795279672,4.60890373,144.95,144.94,30.0]
[1723795280398,4.60890373,144.95,144.92,20.0]
[1723795280778,4.60890373,144.95,144.9,20.0]
[1723795281105,4.60890373,144.95,144.92,20.0]
[1723795281596,1.89180749,144.95,144.92,20.0]
[1723795282198,1.89180749,144.95,144.93,20.0]
[1723795282406,1.89180749,144.95,144.94,20.12549]
[1723795282603,1.89180749,144.95,144.94,85.37647]
[1723795282950,1.89180749,144.95,144.94,105.37647]
[1723795283221,1.89180749,144.95,144.94,60.25098]
[1723795284327,1.89180749,144.95,144.94,40.12549]
[1723795285334,1.89180749,144.95,144.94,40.25098]
[1723795285499,1.89180749,144.95,144.94,105.37647]
[1723795286896,1.89180749,144.95,144.94,60.37647]
[1723795287816,1.89180749,144.95,144.94,40.12549]
[1723795288908,1.89180749,144.95,144.94,60.25098]
[1723795289108,1.89180749,144.95,144.94,105.37647]
[1723795289742,1.89180749,144.95,144.94,105.50196]
[1723795292755,1.89180749,144.95,144.94,40.0]
[1723795293820,1.89180749,144.95,144.94,60.12549]